bitfinex/quotes_ETHUSD_20251017
["timestamp","ask_amount","ask_price","bid_price","bid_amount"]
[1760689948313,2.3616,3745.3,3743.2,3.13149877]
[1760689948620,2.67008592,3745.2,3743.2,2.67149961]
[1760689948821,0.6336,3744.9,3742.5,0.1455]
[1760689949145,0.6336,3744.6,3742.5,0.1455]
[1760689949343,2.3616,3744.4,3743.0,2.67162637]
[1760689949543,2.3616,3744.4,3742.5,0.1455]
[1760689949544,2.3616,3744.4,3742.6,2.67193929]
[1760689949844,2.3616,3744.4,3742.5,0.1455]
[1760689949845,0.04656444,3744.2,3742.5,0.1455]
[1760689950062,0.6336,3744.4,3742.9,1.728]
[1760689950220,0.6336,3744.4,3742.7,0.46]
[1760689950414,0.6336,3744.4,3742.5,0.1455]
[1760689950718,0.6336,3744.2,3743.1,2.6715585]
[1760689951054,0.6336,3744.2,3742.8,2.67179651]
[1760689951055,0.6336,3744.2,3742.6,2.67193929]
[1760689951212,0.431,3744.1,3741.3,2.67385957]
[1760689951414,0.4302,3744.1,3741.8,2.67249439]
[1760689951613,0.4302,3744.1,3742.0,0.613]
[1760689951816,0.47676696,3744.1,3743.1,2.67157872]
[1760689952044,0.47676696,3744.1,3742.9,2.67167989]
[1760689952249,0.6336,3744.0,3742.5,0.46]
[1760689952459,0.6336,3743.8,3742.0,0.153]
[1760689952630,0.6336,3743.8,3741.1,0.46]
[1760689953040,0.6336,3743.2,3742.0,2.67233207]
[1760689953215,2.3616,3743.0,3742.0,2.67233207]
[1760689953418,2.3616,3743.0,3741.3,0.001]
[1760689953419,0.6336,3742.8,3741.3,0.001]
[1760689953624,0.6336,3742.8,3741.4,2.67279003]
[1760689953835,0.6336,3742.6,3741.3,0.001]
[1760689954168,2.3616,3742.4,3741.3,0.001]
[1760689954464,0.1336,3741.8,3741.7,2.67258198]
[1760689954615,0.1336,3741.8,3741.3,0.001]
[1760689954955,0.1336,3741.8,3741.3,2.70059544]
[1760689955179,0.1336,3741.8,3741.7,2.67258198]
[1760689956273,0.1336,3741.8,3741.6,2.6735825]
[1760689956274,0.6336,3741.7,3741.6,0.001]
[1760689956433,1.0646,3741.7,3741.6,0.001]
[1760689956640,0.1336,3741.8,3741.6,0.001]
[1760689956941,1.0646,3741.7,3741.6,0.001]
[1760689958065,0.2274,3741.9,3741.6,0.001]
[1760689958272,0.6336,3741.8,3741.6,0.001]
[1760689958434,0.606,3741.7,3741.6,0.001]
[1760689958639,1.2396,3741.7,3741.6,0.001]
[1760689959260,0.606,3741.7,3741.6,2.67365341]
[1760689959446,0.0465898,3742.1,3741.6,2.67365341]
[1760689959447,0.6336,3742.0,3741.6,2.67365341]
[1760689959746,2.24728299,3742.5,3741.6,0.001]
[1760689959932,1.828,3742.5,3741.8,2.67251055]
[1760689960137,0.2274,3741.9,3741.6,0.001]
[1760689960657,1.0646,3741.8,3741.6,0.001]
[1760689960865,0.431,3743.1,3741.6,0.001]
[1760689961177,0.04659065,3742.0,3741.6,0.001]
[1760689961337,0.04659065,3742.0,3741.6,2.67364225]
[1760689961338,2.911,3741.9,3741.6,2.67364225]
[1760689961537,2.3616,3741.8,3741.6,0.001]
[1760689961736,0.6336,3741.8,3741.6,0.001]
[1760689962174,2.911,3741.9,3741.7,2.67256579]
[1760689962360,0.04658766,3742.4,3741.6,0.461]
[1760689962564,1.087,3742.3,3742.1,2.67226308]
[1760689962760,1.087,3742.3,3741.6,0.461]
[1760689962962,1.087,3742.3,3742.2,2.67222489]
[1760689963139,0.2274,3745.0,3742.2,0.02672224]
[1760689963340,0.701,3743.3,3742.2,2.67222489]
[1760689963649,0.701,3743.3,3743.2,0.1467]
[1760689963847,1.132,3743.3,3742.1,0.1538]
[1760689964063,0.701,3743.3,3742.1,2.82609188]
[1760689964248,0.701,3743.3,3742.1,2.82606687]
[1760689964448,0.701,3743.3,3743.0,2.6716313]
[1760689964649,0.701,3743.3,3742.1,0.1538]
[1760689964865,0.6336,3743.2,3742.1,0.1538]
[1760689965238,1.333,3743.1,3742.2,0.46]
[1760689965442,0.431,3744.2,3743.2,2.67150445]
[1760689965665,0.04657165,3744.7,3743.5,2.67122679]
[1760689965997,0.2274,3743.6,3742.1,0.1538]
[1760689966271,0.6336,3743.3,3742.1,0.1538]
[1760689966445,0.6336,3743.3,3742.1,2.82606367]
[1760689966648,2.911,3743.2,3743.1,2.67156876]
[1760689967177,0.6336,3743.1,3742.1,0.1538]
[1760689967672,3.0438,3743.5,3743.3,2.6714339]
[1760689967885,3.0438,3743.5,3742.2,3.13222489]
[1760689967886,0.1328,3743.3,3742.7,0.1328]
[1760689968179,0.1328,3743.1,3742.9,2.67171758]
[1760689968362,0.1328,3743.1,3742.5,0.1328]
[1760689968363,0.1328,3743.1,3742.5,2.8047957]
[1760689968674,0.6336,3743.4,3742.1,0.1538]
[1760689968675,0.1328,3742.7,3742.6,2.67193929]
[1760689969359,0.2274,3743.8,3742.6,2.67193929]
[1760689969360,0.1328,3743.2,3742.6,0.5928]
[1760689969551,0.1328,3743.2,3742.7,2.67180646]
[1760689969748,0.1328,3742.7,3742.1,0.1538]
[1760689969975,2.911,3743.4,3743.3,2.67143963]
[1760689970137,0.1328,3743.3,3743.2,2.67148766]
[1760689970341,2.911,3743.4,3743.3,2.67143963]
[1760689970542,1.9554,3745.0,3743.3,2.67143963]
[1760689970543,1.204,3746.4,3743.5,1.728]
[1760689970842,0.0465584,3745.2,3743.6,0.46]
[1760689971066,2.911,3745.9,3745.2,2.67008363]
[1760689971342,2.911,3745.9,3744.4,1.728]
[1760689971343,2.911,3745.9,3744.8,2.8201557]
[1760689971638,2.911,3745.9,3744.8,0.1498]
[1760689972055,2.911,3745.9,3745.3,2.6699479]
[1760689972257,0.221,3745.8,3744.2,0.1498]
[1760689972479,0.4593,3745.7,3743.4,2.67132037]
[1760689972679,1.0929,3745.6,3743.6,0.1498]
[1760689972982,0.6336,3745.4,3743.6,0.1498]
[1760689973140,0.6336,3745.2,3743.7,2.67114141]
[1760689973340,0.6336,3745.2,3743.2,1.728]
[1760689973341,0.6336,3745.2,3743.1,0.1467]
[1760689973650,0.6336,3745.2,3743.9,2.67095909]
[1760689973953,0.6336,3745.0,3743.1,0.1467]
[1760689974165,2.3616,3744.8,3743.1,2.81826438]
[1760689974365,0.6336,3744.6,3742.2,0.4728]
[1760689974570,0.68016056,3744.4,3742.7,2.6718039]
[1760689974765,0.6336,3744.2,3742.4,2.67207352]
[1760689975084,0.6336,3744.0,3742.1,0.1538]
[1760689975262,0.6336,3743.8,3742.3,2.6721307]
[1760689975464,0.4593,3743.7,3742.1,0.1538]
[1760689975665,0.4593,3743.7,3742.2,2.67216199]
[1760689975864,0.4593,3743.7,3742.5,2.6719979]
[1760689976065,2.91,3743.6,3742.5,2.6719604]
[1760689976265,2.91,3743.6,3742.4,2.67206455]
[1760689976467,2.91,3743.6,3742.8,2.6717413]
[1760689976646,2.91,3743.6,3742.1,2.82608416]
[1760689976845,2.91,3743.6,3742.1,0.1538]
[1760689977077,1.728,3743.5,3742.1,0.1538]
[1760689977458,0.6336,3743.4,3742.1,0.1538]
[1760689977680,0.6336,3743.4,3742.7,2.6718051]
[1760689977988,0.6336,3743.5,3743.0,2.67160416]
[1760689978167,0.6336,3743.5,3743.1,2.67157051]
[1760689978479,0.6336,3743.5,3742.8,2.67178026]
[1760689978480,0.6336,3743.5,3743.0,2.67161584]
[1760689978687,0.6336,3743.5,3742.3,0.4728]
[1760689978894,0.6336,3743.5,3742.6,0.001]
[1760689979251,2.91,3743.6,3743.3,2.67138506]
[1760689979447,2.91,3743.6,3743.5,2.67129691]
[1760689979953,0.002,3744.1,3744.0,2.67094017]
[1760689980480,0.002,3744.1,3744.0,3.14374017]
[1760689980783,1.25055304,3746.4,3744.1,1.728]
[1760689980982,1.25055304,3746.4,3745.8,2.66965668]
[1760689980983,0.1328,3745.9,3745.8,2.66965668]
[1760689981187,0.1328,3746.5,3745.9,0.1328]
[1760689981357,0.4392,3746.9,3744.7,0.4312]
[1760689982378,0.4392,3746.9,3745.6,2.6697428]
[1760689982580,0.4392,3746.9,3745.6,2.66977649]
[1760689982787,0.48573424,3746.9,3745.6,2.66977649]
[1760689983091,0.4392,3746.9,3745.2,0.4312]
[1760689983383,0.4392,3746.9,3745.7,2.66970873]
[1760689983681,0.13178974,3747.9,3745.7,2.66970873]
[1760689983682,0.26753137,3748.2,3745.8,2.18589656]
[1760689983847,0.04653137,3748.2,3748.0,2.66808964]
[1760689984047,0.265,3748.5,3748.0,2.66808964]
[1760689984274,0.002,3748.5,3748.0,0.4312]
[1760689984461,0.002,3748.5,3748.0,4.85397053]
[1760689984666,0.002,3748.5,3748.0,4.82728964]
[1760689984880,0.002,3748.5,3748.0,4.85397053]
[1760689985239,0.002,3748.5,3748.0,13.41943253]
[1760689985411,1e-08,3748.5,3748.4,20.19136393]
[1760689985613,0.002,3748.9,3748.8,11.73813927]
[1760689985946,0.069,3751.4,3750.1,2.66659555]
[1760689986099,0.002,3751.4,3750.1,7.4760615]
[1760689986298,0.002,3751.4,3750.1,7.88059555]
[1760689986499,0.002,3751.4,3750.1,11.62075555]
[1760689986732,0.002,3751.4,3750.1,10.51025555]
[1760689986908,0.002,3751.4,3750.1,12.43594155]
[1760689987110,0.002,3751.4,3750.1,7.28894055]
[1760689987339,0.002,3751.4,3749.7,2.66686823]
[1760689987340,0.2334,3750.6,3749.7,1.728]
[1760689987501,0.069,3751.2,3749.3,0.4312]
[1760689987502,0.6336,3750.9,3749.3,0.4312]
[1760689987706,1.0728,3750.9,3748.8,0.4312]
[1760689987951,1.0728,3750.9,3748.9,3.59311949]
[1760689988103,1.0728,3750.9,3748.8,0.4312]
[1760689988310,0.4392,3750.5,3749.6,2.6669342]
[1760689988509,0.6336,3750.9,3748.8,0.4312]
[1760689988510,0.6336,3750.9,3749.3,2.66715518]
[1760689988817,0.6336,3750.4,3748.7,0.1538]
[1760689989018,0.4392,3750.5,3748.7,0.1538]
[1760689989019,0.2334,3751.0,3748.8,0.4312]
[1760689989221,0.6336,3750.9,3749.4,2.66708124]
[1760689989424,0.6336,3750.9,3749.2,1.728]
[1760689989732,0.6336,3750.9,3749.9,2.66670893]
[1760689990044,0.2334,3751.0,3750.1,2.66659555]
[1760689990241,0.069,3751.2,3750.1,2.8390615]
[1760689990448,0.069,3751.2,3749.1,1.728]
[1760689990647,0.6336,3751.1,3749.7,0.1458]
[1760689990816,0.2334,3750.9,3750.1,2.66659555]
[1760689991016,0.6336,3751.1,3750.1,2.66659555]
[1760689991217,0.6336,3751.1,3749.7,0.1458]
[1760689991218,0.2334,3750.8,3749.7,0.1458]
[1760689991415,0.1328,3750.7,3750.1,2.66659555]
[1760689991615,0.1328,3751.0,3750.1,2.79939555]
[1760689991839,0.2334,3750.9,3750.1,2.79939555]
[1760689992018,0.6336,3750.8,3749.8,2.6667815]
[1760689992214,0.1328,3750.5,3749.8,0.1328]
[1760689992816,0.1328,3750.1,3749.5,0.1328]
[1760689993353,0.6336,3749.4,3748.9,0.1328]
[1760689993522,0.1328,3748.9,3748.2,0.1328]
[1760689993719,0.6336,3749.2,3745.9,26.2841752]
[1760689993720,4.2122,3748.8,3745.9,26.2841752]
[1760689993930,4.2122,3748.8,3746.7,0.1458]
[1760689993931,0.6336,3748.6,3746.7,0.1458]
[1760689994141,1.728,3748.7,3746.8,0.02668944]
[1760689994142,0.4392,3748.5,3746.8,0.02668944]
[1760689994334,0.6336,3748.4,3747.4,2.66849119]
[1760689994532,0.6336,3748.4,3746.7,0.1458]
[1760689994734,0.65190673,3748.8,3746.8,0.4312]
[1760689994935,2.906,3748.5,3746.9,0.02668872]
[1760689995135,2.906,3748.5,3748.0,2.66807644]
[1760689995355,0.2334,3748.9,3747.5,0.1478]
[1760689995675,0.4392,3748.8,3747.9,2.66809247]
[1760689995961,1.0728,3748.8,3747.6,2.66837442]
[1760689996124,1.0728,3748.8,3748.1,2.6679591]
[1760689996325,2.906,3749.2,3748.1,0.1488]
[1760689996750,1.728,3749.1,3748.0,2.66808964]
[1760689996950,1.728,3749.1,3747.5,0.1478]
[1760689996951,0.6336,3749.0,3747.9,2.66810078]
[1760689997255,0.6336,3748.8,3747.5,0.1478]
[1760689997458,0.6336,3749.0,3747.7,2.66830322]
[1760689997667,1.728,3749.1,3748.0,2.66802215]
[1760689997856,1.728,3749.1,3748.1,0.1488]
[1760689998158,2.906,3749.2,3748.2,2.69462675]
[1760689998361,0.04649781,3749.6,3749.1,2.66730682]
[1760689998548,1.202,3749.9,3748.2,2.66794728]
[1760689998728,2.12,3750.0,3749.1,0.1538]
[1760689998929,0.0012,3750.2,3750.1,2.66659555]
[1760689999130,0.0012,3750.2,3749.2,0.45787235]
[1760689999131,0.0012,3750.2,3749.2,0.4312]
[1760689999360,0.0012,3750.2,3750.1,2.66659555]
[1760689999561,0.0012,3750.2,3750.1,2.81239555]
[1760689999962,0.0012,3750.2,3749.1,0.1538]
[1760690000262,0.0012,3750.2,3750.1,2.66659555]
[1760690000461,0.0012,3750.2,3750.0,2.66666295]
[1760690000668,0.0012,3750.2,3749.5,2.66698217]
[1760690000867,0.6336,3750.0,3748.3,4.3958761]
[1760690001034,0.4392,3750.1,3748.3,1.728]
[1760690001386,1.8762,3750.2,3748.4,0.45787804]
[1760690001528,0.0012,3750.2,3749.3,2.66716453]
[1760690001735,0.0012,3750.2,3749.8,2.66674737]
[1760690001930,0.2306,3749.4,3747.8,0.4279]
[1760690002233,0.0012,3750.2,3749.7,2.66683188]
[1760690002432,0.0012,3750.2,3750.1,2.66659555]
[1760690002668,0.0012,3750.2,3750.1,2.81229555]
[1760690003069,0.0012,3750.2,3749.6,2.66688068]
[1760690003239,0.0012,3750.2,3749.3,0.1038]
[1760690003240,0.0012,3750.2,3749.3,2.77094549]
[1760690003433,0.0012,3750.2,3750.1,2.66659555]
[1760690003633,0.0012,3750.2,3750.1,0.1328]
[1760690003961,0.0012,3750.2,3749.8,0.1328]
[1760690004461,0.0012,3750.2,3749.3,0.1038]
[1760690004782,0.0012,3750.2,3749.4,2.6670934]
[1760690004984,0.0012,3750.2,3749.8,2.66674176]
[1760690005186,0.0012,3750.2,3749.3,0.13047164]
[1760690005367,0.0012,3750.2,3750.1,2.66659555]
[1760690005770,0.4697,3750.2,3749.6,2.66693458]
[1760690005964,0.0012,3750.2,3750.1,2.66659555]
[1760690006187,0.0012,3750.2,3750.0,2.66662079]
[1760690006486,0.0012,3750.2,3750.1,2.66659555]
[1760690007391,0.0012,3750.2,3750.1,4.8491615]
[1760690007713,0.0012,3750.2,3750.1,11.1588925]
[1760690007888,0.002,3751.4,3751.3,2.66574254]
[1760690008204,0.002,3751.4,3751.0,1.728]
[1760690008367,0.002,3751.4,3751.2,1.728]
[1760690008569,0.002,3751.4,3750.4,1.728]
[1760690008774,0.002,3751.4,3750.2,3.0506]
[1760690008957,0.002,3751.4,3750.2,2.66650329]
[1760690009268,0.002,3751.4,3750.3,0.01896736]
[1760690009593,0.002,3751.4,3750.9,2.66597163]
[1760690009792,0.002,3751.4,3750.6,1.728]
[1760690009992,0.002,3751.4,3751.3,2.66574254]
[1760690010286,0.002,3751.4,3749.6,0.1457]
[1760690010489,0.002,3751.4,3750.7,2.66616591]
[1760690010695,0.002,3751.4,3750.5,2.66625256]
[1760690010861,0.4685,3751.3,3749.9,2.66671962]
[1760690011057,1.1021,3751.2,3749.7,2.66688001]
[1760690011363,1.1021,3751.2,3749.3,2.66715368]
[1760690011577,1.1021,3751.2,3749.7,2.66682805]
[1760690011899,0.4685,3751.1,3749.8,2.66679605]
[1760690012087,0.4685,3751.1,3749.7,2.66681222]
[1760690012291,0.4685,3751.0,3749.2,2.81289073]
[1760690012598,0.002,3751.4,3749.4,2.6670934]
[1760690012798,0.002,3751.4,3749.9,1.728]
[1760690013106,0.002,3751.4,3750.8,2.66608891]
[1760690013271,0.002,3751.4,3750.0,3.09452778]
[1760690013476,0.002,3751.4,3750.5,0.1466]
[1760690013670,0.002,3751.4,3750.9,2.66601047]
[1760690013984,0.002,3751.4,3751.0,2.66594698]
[1760690014300,0.002,3751.4,3750.1,0.1466]
[1760690014301,0.002,3751.2,3750.1,0.1466]
[1760690014612,0.1328,3751.0,3750.4,0.1328]
[1760690015284,0.002,3751.2,3749.6,2.66693575]
[1760690015607,0.2306,3750.9,3749.4,0.4279]
[1760690015769,0.2306,3750.9,3750.1,2.6665395]
[1760690016172,0.6336,3750.8,3749.8,2.66673828]
[1760690016393,0.6336,3750.6,3749.3,0.001]
[1760690016602,0.2306,3749.9,3749.3,0.001]
[1760690016805,2.903,3750.1,3749.3,0.001]
[1760690016971,2.903,3750.1,3749.5,2.66696455]
[1760690017167,2.903,3750.1,3749.3,0.001]
[1760690017404,3.0607,3750.0,3749.3,0.001]
[1760690017969,1.3327,3750.0,3749.3,0.001]
[1760690018280,2.3616,3749.8,3749.3,0.001]
[1760690018813,0.6336,3749.6,3749.3,0.001]
[1760690019315,1.1021,3749.5,3749.3,0.001]
[1760690019702,2.8301,3749.5,3749.3,0.001]
[1760690020214,1.1021,3749.4,3749.3,0.001]
[1760690020392,0.6336,3749.4,3749.3,0.001]
[1760690020592,1.1021,3749.4,3749.3,0.001]
[1760690022799,1.1013,3749.4,3749.3,0.001]
[1760690022992,1.14780481,3749.4,3749.3,0.001]
[1760690023192,1.1013,3749.4,3749.3,0.001]
[1760690023394,0.6328,3749.4,3749.3,0.001]
[1760690023582,3.78998593,3749.4,3749.3,0.001]
[1760690023779,5.0995,3749.4,3749.3,0.001]
[1760690024713,5.7331,3749.4,3749.3,0.001]
[1760690024918,2.903,3749.4,3749.3,0.001]
[1760690025115,3.3715,3749.4,3749.3,0.001]
[1760690025424,3.3715,3749.4,3748.9,0.001]
[1760690025425,0.6336,3749.3,3748.9,0.001]
[1760690025606,2.3616,3749.3,3748.9,0.001]
[1760690025913,0.6336,3749.1,3748.9,0.001]
[1760690026432,1.1021,3749.0,3748.9,0.001]
[1760690028108,1.14861152,3749.0,3748.5,0.001]
[1760690028352,1.14861152,3749.0,3745.0,0.1048]
[1760690028353,3.11399,3748.5,3746.3,0.1498]
[1760690028633,0.2306,3748.6,3745.0,0.1048]
[1760690028634,0.6336,3748.0,3745.7,0.1457]
[1760690028939,1.1021,3747.9,3745.7,0.1457]
[1760690029096,4.7386,3747.8,3745.7,0.1457]
[1760690029305,0.6336,3747.3,3745.7,0.1457]
[1760690029501,2.3616,3747.1,3746.2,2.66931854]
[1760690029817,2.3616,3747.1,3745.7,0.1457]
[1760690030000,15.752865,3747.0,3744.1,0.02670868]
[1760690030203,15.752865,3747.0,3742.9,0.1508]
[1760690030204,0.6336,3745.6,3743.4,0.1466]
[1760690030402,2.3616,3745.4,3743.4,0.1466]
[1760690030602,0.6336,3745.2,3743.4,2.6713592]
[1760690030828,0.6336,3745.0,3742.9,0.1508]
[1760690031031,2.3616,3744.8,3743.7,2.67112883]
[1760690031201,2.3616,3744.8,3743.0,2.67165375]
[1760690031401,2.3616,3744.8,3742.9,0.1508]
[1760690031616,0.41897221,3744.7,3744.5,2.67051992]
[1760690031818,1.05257221,3744.7,3744.3,0.1048]
[1760690032018,0.2206,3744.4,3742.7,0.6094]
[1760690032199,1.728,3744.2,3743.4,0.001]
[1760690032420,0.6336,3745.2,3743.4,0.001]
[1760690032603,2.3616,3745.0,3743.5,0.4628]
[1760690032803,2.3616,3745.0,3744.6,2.67047192]
[1760690033045,3.32298508,3745.1,3744.5,0.1048]
[1760690033198,26.2841752,3746.8,3744.5,0.1048]
[1760690033199,2.904,3746.1,3745.5,2.66986522]
[1760690033407,2.904,3746.0,3745.7,2.66966824]
[1760690033612,2.904,3746.0,3745.5,2.66980455]
[1760690033836,2.904,3746.0,3745.2,0.1457]
[1760690034138,0.2206,3746.4,3743.7,2.67108887]
[1760690034139,1.728,3745.8,3744.6,2.67044673]
[1760690034345,1.728,3745.8,3744.2,2.67072683]
[1760690034346,1.0853,3745.7,3744.0,2.6708813]
[1760690034526,1.0853,3745.7,3744.3,2.6707009]
[1760690034730,1.0853,3745.7,3743.4,0.4638]
[1760690034731,0.6336,3745.3,3743.4,0.4638]
[1760690035034,0.6336,3745.0,3744.3,2.6707261]
[1760690035736,0.6336,3745.0,3743.7,2.6711542]
[1760690036041,2.905,3744.9,3744.8,2.67036957]
[1760690036224,2.905,3744.9,3744.4,2.67065484]
[1760690036425,2.905,3744.9,3744.7,2.67041182]
[1760690036833,4.633,3744.9,3744.8,2.67036957]
[1760690037044,4.633,3744.9,3744.1,0.1048]
[1760690037340,4.633,3744.9,3743.6,2.67122555]
[1760690037341,0.6336,3744.8,3743.6,2.67122555]
[1760690037550,2.3616,3744.8,3744.3,2.67071558]
[1760690037715,0.1328,3744.5,3744.3,2.67071558]
[1760690038226,2.905,3744.9,3744.5,2.67055563]
[1760690038440,2.905,3744.9,3744.2,0.1048]
[1760690038639,2.905,3744.9,3744.3,2.67067161]
[1760690038953,2.905,3744.9,3744.2,0.1048]
[1760690039150,2.905,3744.9,3744.4,2.67065484]
[1760690039317,2.905,3744.9,3744.5,2.6705744]
[1760690039512,2.905,3744.9,3744.2,0.0548]
[1760690040027,2.905,3744.9,3744.3,0.4628]
[1760690040344,2.905,3744.9,3744.7,2.6703707]
[1760690040854,2.905,3744.9,3744.2,0.0548]
[1760690041015,2.905,3744.9,3744.7,2.67043079]
[1760690041215,0.8539,3744.8,3743.6,0.4449]
[1760690041416,2.5819,3744.8,3743.0,0.4459]
[1760690041819,2.5819,3744.8,3743.6,2.67119832]
[1760690042163,2.3616,3744.8,3743.6,0.4449]
[1760690042511,2.905,3744.9,3744.8,2.67036957]
[1760690042744,0.41890875,3746.3,3745.4,2.66989947]
[1760690043048,0.6773,3746.4,3744.8,0.4449]
[1760690043049,0.04654818,3746.1,3745.6,2.66975685]
[1760690043251,2.905,3746.2,3744.8,0.4449]
[1760690043550,2.905,3746.2,3746.1,2.82024288]
[1760690043752,2.905,3746.6,3746.3,2.66923941]
[1760690043912,2.905,3746.6,3745.3,2.67001308]
[1760690044316,2.905,3746.6,3746.3,2.66925233]
[1760690044546,2.905,3746.6,3746.1,0.1508]
[1760690044846,2.905,3746.6,3746.3,2.66929981]
[1760690045056,2.905,3746.6,3746.5,2.66915788]
[1760690045263,0.4567,3748.1,3746.3,2.66923825]
[1760690045459,2.905,3747.7,3746.6,2.66908048]
[1760690045764,0.2203,3746.7,3745.1,0.4449]
[1760690045973,3.5386,3746.6,3745.1,0.4449]
[1760690046124,0.6336,3746.4,3745.1,0.4449]
[1760690046324,0.6336,3746.4,3745.8,2.66960737]
[1760690046631,0.41875433,3747.3,3745.9,0.47159585]
[1760690046831,0.78,3747.2,3746.3,0.1508]
[1760690047076,0.78,3747.2,3745.2,2.67008437]
[1760690047229,0.78,3747.2,3745.1,0.4449]
[1760690047230,0.4567,3747.1,3745.5,2.66980536]
[1760690047429,2.508,3747.2,3745.5,2.66981536]
[1760690047662,2.508,3747.2,3744.7,0.0548]
[1760690047663,26.3372507,3746.6,3744.7,0.0548]
[1760690047863,0.2203,3746.0,3744.3,0.4449]
[1760690048046,5.0897,3746.5,3745.0,2.6701911]
[1760690048047,1.728,3745.8,3745.0,2.6701911]
[1760690048370,1.9483,3746.5,3743.9,2.81670339]
[1760690048371,0.1328,3745.4,3745.1,0.1466]
[1760690048553,2.905,3746.0,3745.1,0.1466]
[1760690048754,0.1328,3745.4,3744.8,2.80310473]
[1760690048940,2.905,3745.3,3745.2,2.67008437]
[1760690049148,2.905,3745.3,3745.1,0.1328]
[1760690049334,2.905,3745.3,3744.7,0.1466]
[1760690049538,2.905,3745.3,3745.1,0.1328]
[1760690049867,2.905,3745.3,3745.1,2.67013059]
[1760690050365,2.905,3745.3,3745.2,3.11498437]
[1760690050661,2.905,3745.8,3745.7,2.66972795]
[1760690051161,2.905,3745.9,3745.2,0.1328]
[1760690051362,2.905,3745.9,3745.8,2.66965668]
[1760690051540,0.1328,3746.6,3746.5,2.66915788]
[1760690051735,0.1328,3747.2,3746.5,0.1328]
[1760690051927,2.415,3747.1,3746.5,0.1328]
[1760690052136,0.1328,3747.5,3746.8,0.1328]
[1760690052432,1.808,3747.5,3746.6,2.66905339]
[1760690052631,1.808,3747.5,3747.4,2.66851683]
[1760690052852,1.808,3747.5,3746.3,0.2056]
[1760690053174,2.2647,3747.5,3746.4,2.6691698]
[1760690053373,0.6336,3747.4,3746.5,2.66910969]
[1760690053550,0.6336,3747.4,3746.1,2.66938844]
[1760690053750,0.4567,3747.3,3745.9,2.87517358]
[1760690054074,0.6336,3747.2,3744.6,0.4459]
[1760690054265,0.6336,3747.2,3745.2,0.4449]
[1760690054647,0.2203,3747.8,3745.2,0.4449]
[1760690054648,0.41872812,3747.5,3745.2,0.4449]
[1760690054975,1.329,3747.3,3745.8,2.66960823]
[1760690055175,1.329,3747.3,3745.7,0.4449]
[1760690055382,0.4567,3747.2,3745.8,2.66965668]
[1760690055586,1.0903,3747.1,3746.1,2.66943837]
[1760690055784,1.0903,3747.1,3744.7,0.1466]
[1760690055785,1.0903,3747.1,3746.0,2.66948686]
[1760690056003,1.0903,3747.1,3744.7,0.1466]
[1760690056004,1.0903,3747.1,3745.3,0.4449]
[1760690056281,1.0903,3747.1,3746.4,2.6692145]
[1760690056610,1.0903,3747.1,3745.4,2.66987591]
[1760690056785,1.0903,3747.1,3745.8,2.66962943]
[1760690056971,0.6336,3747.1,3744.7,0.5915]
[1760690057283,0.6336,3746.9,3745.9,2.66957937]
[1760690057485,0.6336,3746.7,3745.7,2.66966161]
[1760690057653,0.6336,3746.7,3745.8,2.66964685]
[1760690057849,0.6336,3746.7,3745.5,2.66985981]
[1760690058048,0.6336,3746.7,3746.0,2.66945348]
[1760690058344,0.6336,3746.7,3745.9,2.66957186]
[1760690058881,0.6336,3746.7,3745.4,2.66990699]
[1760690059052,0.6336,3746.5,3745.5,2.66985517]
[1760690059247,0.4567,3746.6,3744.7,3.26191467]
[1760690059248,2.3616,3746.3,3744.7,0.5915]
[1760690059474,2.904,3746.4,3746.3,2.66930037]
[1760690059780,0.677,3747.8,3746.3,0.4449]
[1760690059984,2.904,3747.6,3746.8,2.66893646]
[1760690060183,2.904,3747.6,3746.3,0.4449]
[1760690060433,2.904,3747.6,3747.2,2.66862078]
[1760690060581,2.904,3747.6,3746.3,0.4449]
[1760690060781,2.1847,3747.5,3746.2,0.2056]
[1760690060981,2.1847,3747.5,3745.9,0.2056]
[1760690061210,0.6336,3747.4,3746.0,0.02669514]
[1760690061381,0.6336,3747.4,3746.1,0.23229442]
[1760690061593,2.904,3747.6,3746.2,3.11373871]
[1760690061909,2.904,3747.6,3747.5,2.66844563]
[1760690062110,0.04651357,3748.8,3747.6,2.66837442]
[1760690062412,0.1328,3748.3,3747.6,2.66837442]
[1760690062624,0.1328,3748.3,3747.5,0.1328]
[1760690062827,0.1328,3748.0,3747.6,2.66837442]
[1760690063719,0.1328,3748.0,3747.5,0.1328]
[1760690064022,0.1328,3748.0,3747.6,2.66837442]
[1760690064387,0.1328,3748.0,3747.5,0.1328]
[1760690064614,0.1328,3748.0,3747.6,2.66837442]
[1760690064815,3.0368,3748.5,3747.6,3.71803458]
[1760690065123,2.904,3748.5,3747.6,3.83698266]
[1760690065326,0.002,3751.2,3747.6,3.83698266]
[1760690065327,0.04650292,3749.6,3747.7,8.584124]
[1760690065485,0.04650292,3749.6,3747.6,2.76380824]
[1760690065486,0.2364,3750.3,3748.1,2.3616]
[1760690065686,0.2364,3750.3,3749.6,2.66690832]
[1760690065998,0.673,3750.6,3749.2,2.66723567]
[1760690066199,0.673,3750.6,3749.9,2.66668559]
[1760690066398,0.673,3750.6,3749.1,0.1446]
[1760690066606,27.94955016,3750.5,3749.1,0.1446]
[1760690066915,2.1646,3750.4,3749.1,2.81188268]
[1760690067224,0.4366,3750.4,3749.1,0.1446]
[1760690067419,2.1646,3750.4,3749.6,2.66689462]
[1760690067608,0.6336,3750.3,3749.2,2.66721614]